[Event "NY Presidents Day IM-B 2024"]
[Site "New York"]
[Date "2024.02.16"]
[Round "2.4"]
[White "Xu, Grant"]
[Black "Graif, William"]
[Result "1-0"]
[ECO "B21"]
[WhiteElo "2313"]
[BlackElo "2302"]
[Annotator "TA"]
[PlyCount "101"]
[EventDate "2024.02.14"]
[EventType "schev"]
[EventCountry "USA"]
[SourceTitle "playchess.com"]
[Source "ChessBase"]
[SourceQuality "1"]
[TimeControl "5400+30"]

{[%evp 17,101,-29,-14,-38,-41,-53,-27,-20,-19,-21,-28,-22,-14,-32,0,0,0,0,0,0,0,4,230,56,57,59,55,61,49,60,53,54,144,106,105,99,100,97,97,104,128,91,111,111,133,138,195,195,201,203,343,350,340,337,352,351,318,319,319,335,385,376,368,384,461,467,436,391,394,383,387,387,439,452,523,523,523,523,576,547,824,806,703,430,1337,1220]} 1. e4 {[%emt 0:00:04]} c5 {[%emt 0:00:06]} 2. d4 {[%emt 0:00:20]} cxd4 {[%emt 0:00:15]} 3. c3 {[%emt 0:00:05]} dxc3 {[%emt 0:01:16]} 4. Nxc3 {[%emt 0:00:06]} Nc6 {[%emt 0:00:07]} 5. Nf3 {[%emt 0:00:16]} e6 {[%emt 0:01:22]} 6. Bc4 {[%emt 0:00:26]} Bb4 {[%emt 0:03:00]} 7. O-O {[%emt 0:00:52]} Nge7 {[%emt 0:00:59]} 8. Qc2 {[%emt 0:00:32] B21: Sicilian: 2 f4 and Morra Gambit.} O-O {[%emt 0:00:43]} 9. Rd1 {[%emt 0:00:25]} Ng6 {[%emt 0:00:03]} 10. a3 {[%emt 0:01:22]} Be7 {[%emt 0:00:10]} 11. Be3 {[%emt 0:02:46]} b6 $146 {[%emt 0:03:00]} ({Predecessor:} 11... a6 12. Rd2 b5 13. Ba2 Rb8 14. Qd1 b4 15. axb4 Rxb4 16. Bb3 Na5 17. Ra3 Rb8 {0-1 Xu,G (2231)-Chasin,N (2243) New York Winter IM-D 2022 (6)}) 12. Rd2 {[%emt 0:03:42]} Bb7 {[%emt 0:47:32]} 13. Rad1 {[%emt 0:11:16]} Qc8 {[%emt 0:03:44]} 14. Be2 {[%emt 0:06:59]} (14. Rxd7 Nb8 15. Rxe7 Nxe7 $17) 14... d6 {[%emt 0:07:51]} 15. Nb5 {[%emt 0:07:30]} Nce5 {[%emt 0:03:50]} 16. Nxe5 {[%emt 0:06:46]} dxe5 {[%emt 0:04:17]} 17. f3 {[%emt 0:06:54]} (17. Nc7 $5 Rb8 $8 (17... Bxe4 18. Qxe4 Qxc7 19. Rc2 $16) 18. Bb5 $16) 17... Ba6 {[%emt 0:13:42]} 18. Rc1 {[%emt 0:03:29]} Nf4 {[%emt 0:02:40]} 19. Bf1 {[%emt 0:00:42]} Rd8 $2 {[%emt 0:04:09]} (19... Qxc2 $11 20. Rcxc2 Bg5) 20. Nc7 $2 {[%emt 0:04:24]} (20. Qa4 $1 $18 Bc5 (20... Qxc1 $2 21. Rxd8+ Rxd8 22. Bxc1 $18) 21. Rxd8+ Qxd8 22. Rxc5 bxc5 23. Qxa6) 20... Bc5 $14 {[%emt 0:01:10]} 21. Rxd8+ {[%emt 0:00:43]} Qxd8 {[%emt 0:00:01]} 22. Bxc5 {[%emt 0:00:16]} Bxf1 {[%emt 0:00:55]} 23. Nxa8 {[%emt 0:02:44]} Bd3 $1 {[%emt 0:00:20]} 24. Bxb6 $1 {[%emt 0:00:45]} Qf8 {[%emt 0:00:44]} (24... Bxc2 $14 25. Bxd8 Ne2+ 26. Kf1 Nxc1) 25. Qc8 {[%emt 0:00:25]} ({Resist} 25. Bc5 $6 Bxc2 26. Bxf8 Ne2+ 27. Kf1 Nxc1 $14) 25... Ne2+ {[%emt 0:00:05]} 26. Kf2 {[%emt 0:00:18]} Nxc1 {[%emt 0:00:23]} 27. Qxf8+ {[%emt 0:00:05]} Kxf8 {[%emt 0:00:01]} 28. Bxa7 {[%emt 0:00:08]} Ke7 {[%emt 0:01:25]} 29. Nb6 {[%emt 0:01:20]} Ba6 {[%emt 0:00:39]} 30. Na4 {[%emt 0:02:45]} Nd3+ {[%emt 0:00:28] [#]} 31. Ke3 $1 {[%emt 0:00:19]} Bb5 {[%emt 0:00:28]} (31... f6 $16 {might work better.} 32. Nc5 Nxc5 33. Bxc5+ Kd7) 32. Nc3 $18 {[%emt 0:00:15]} Ba6 {[%emt 0:00:19] [#]} 33. b4 $1 {[%emt 0:00:55]} Ne1 {[%emt 0:00:42]} (33... Bc4 $142 34. a4 (34. Kd2 Kd7 $18) 34... Kd7) 34. b5 $18 {[%emt 0:00:19]} Bc8 {[%emt 0:00:22]} 35. Bc5+ {[%emt 0:00:45]} Kd7 {[%emt 0:00:05]} 36. g3 {[%emt 0:00:30]} Nc2+ {[%emt 0:00:55]} 37. Kd3 {[%emt 0:00:18]} Ne1+ {[%emt 0:00:06]} 38. Ke2 {[%emt 0:00:23]} Nc2 {[%emt 0:00:08]} 39. a4 {[%emt 0:00:12]} Kc7 {[%emt 0:01:26]} 40. f4 {[%emt 0:00:43]} exf4 {[%emt 0:00:30]} 41. gxf4 {[%emt 0:00:06]} Na1 {[%emt 0:00:22]} 42. Kd3 {[%emt 0:00:17]} Nb3 {[%emt 0:00:21]} 43. Be3 {[%emt 0:00:16]} Na5 {[%emt 0:00:32]} 44. Nb1 {[%emt 0:01:03]} Bb7 {[%emt 0:01:17]} 45. Nd2 {[%emt 0:00:15]} f5 {[%emt 0:00:00]} 46. exf5 {[%emt 0:00:44]} exf5 {[%emt 0:00:00]} 47. Kc3 {[%emt 0:00:10]} Bc8 {[%emt 0:00:44]} 48. Kb4 {[%emt 0:00:12]} Nb7 {[%emt 0:00:06]} 49. a5 {[%emt 0:00:23]} Nd6 {[%emt 0:00:33]} 50. Bd4 {[%emt 0:00:34]} Ne8 {[%emt 0:01:03]} (50... Bd7 $142 51. Be5 (51. Bxg7 Nxb5 52. Be5+ Kb7 $16) 51... Bxb5 52. Bxd6+ (52. Bxg7 Kc6 $16) 52... Kc6) 51. Kc5 {[%emt 0:00:17]} 1-0

[Event "NY Presidents Day IM-B 2024"]
[Site "New York"]
[Date "2024.02.16"]
[Round "2.5"]
[White "Tanenbaum, Zachary"]
[Black "Poliannikov, Danila"]
[Result "0-1"]
[ECO "C54"]
[WhiteElo "2272"]
[BlackElo "2282"]
[Annotator "TA"]
[PlyCount "90"]
[EventDate "2024.02.14"]
[EventType "schev"]
[EventCountry "USA"]
[SourceTitle "playchess.com"]
[Source "ChessBase"]
[SourceQuality "1"]
[TimeControl "5400+30"]

{[%evp 15,90,23,22,21,21,6,2,12,5,7,7,16,9,0,16,18,18,19,14,0,24,-61,-79,-63,-105,-71,-69,-151,-169,-188,-170,-235,-158,-144,-134,-184,-155,-150,-123,-156,-90,-89,-87,-117,-89,-86,-85,-128,-74,-73,-67,-66,-52,-81,-88,-79,-93,-113,-117,-115,-115,-179,-94,-81,-85,-76,-79,-118,-137,-225,-225,-965,-963,-29985,-29986,-29991,-29992]} 1. e4 {[%emt 0:17:22]} e5 {[%emt 0:00:06]} 2. Nf3 {[%emt 0:00:03]} Nc6 {[%emt 0:00:03]} 3. Bc4 {[%emt 0:00:03]} Bc5 {[%emt 0:00:03]} 4. c3 {[%emt 0:00:03]} Nf6 {[%emt 0:00:04][%cal Bg8f6,Bf6d5,Bd5b6][%mdl 32]} 5. d3 {[%emt 0:00:04]} O-O {[%emt 0:00:05]} 6. O-O {[%emt 0:00:04]} d5 {[%emt 0:00:03]} 7. exd5 {[%emt 0:00:04]} Nxd5 {[%emt 0:00:02]} 8. Re1 {[%emt 0:00:04]} Bg4 {[%emt 0:00:04]} 9. Nbd2 {[%emt 0:00:05]} Nb6 {[%emt 0:00:45]} 10. h3 {[%emt 0:00:07]} Bh5 {[%emt 0:02:01]} 11. b4 {[%emt 0:00:07] The position is equal.} Be7 {[%emt 0:08:50]} 12. Qe2 {[%emt 0:00:05]} Nxc4 {[%emt 0:00:43]} 13. Nxc4 {[%emt 0:00:03]} f6 {[%emt 0:00:12]} 14. b5 {[%emt 0:00:06]} Nb8 {[%emt 0:00:06]} 15. d4 {[%emt 0:00:11]} a6 {[%emt 0:00:10]} 16. b6 {[%emt 0:00:12]} cxb6 {[%emt 0:01:53]} 17. dxe5 {[%emt 0:00:07]} Qc7 {[%emt 0:07:20]} 18. e6 {[%emt 0:05:28]} (18. g4 $11 b5 19. Ne3) 18... Bxf3 $1 $15 {[%emt 0:04:26]} 19. gxf3 {[%emt 0:00:19] And now Be3 would win.} b5 {[%emt 0:07:34]} 20. Ne3 {[%emt 0:00:18]} Qe5 {[%emt 0:00:43] Prevents Nd5} 21. Qd3 {[%emt 0:27:55] [#]} (21. a4 $15) 21... Nc6 $1 $17 {[%emt 0:13:20][%cal Oa8d8]} 22. Ng2 {[%emt 0:03:25]} Rad8 {[%emt 0:03:18]} 23. Qc2 {[%emt 0:15:43]} (23. Qe3 {keeps fighting.}) 23... Qd5 {[%emt 0:06:23]} 24. f4 {[%emt 0:06:48] Dodges Ne5} f5 {[%emt 0:01:22]} 25. Bb2 {[%emt 0:12:06]} (25. Be3 $17) 25... Qd2 {[%emt 0:09:06]} 26. Rac1 {[%emt 0:04:41]} Na5 {[%emt 0:04:49] Black has more active pieces.} 27. Ne3 {[%emt 0:00:36]} Qxc2 {[%emt 0:03:39]} (27... Nc4 $142 28. Qxd2 (28. Nxf5 $2 Qxf4 29. Nxe7+ Kh8 $19) 28... Rxd2 29. Nxc4 bxc4) 28. Rxc2 {[%emt 0:00:04]} Nc4 {[%emt 0:00:12]} 29. Bc1 {[%emt 0:02:51]} Rd3 {[%emt 0:02:32]} 30. Nxc4 {[%emt 0:02:22]} bxc4 {[%emt 0:00:04]} 31. Be3 {[%emt 0:01:01]} Bf6 {[%emt 0:01:48]} (31... b5 $142 32. a4 bxa4) 32. Rb1 {[%emt 0:00:19]} b5 {[%emt 0:00:59]} (32... Rxc3 33. Rxc3 Bxc3 34. Rxb7 $11) 33. a4 $1 {[%emt 0:00:24]} bxa4 {[%emt 0:04:29]} (33... Rxc3 34. Rxc3 Bxc3 35. axb5 axb5 36. Rxb5 $16) 34. Ra2 {[%emt 0:00:32]} Rxc3 {[%emt 0:03:41]} (34... Bxc3 35. Rxa4 Bd4 36. Bxd4 Rxd4 37. Rxa6 $16) 35. Rxa4 {[%emt 0:00:24]} Rb3 $36 {[%emt 0:00:32][%mdl 2048] Black is in control.} 36. Rc1 {[%emt 0:01:37]} c3 {[%emt 0:00:23]} 37. Rxa6 {[%emt 0:00:07]} Rc8 {[%emt 0:00:15] Repels Rc6} 38. Ra5 {[%emt 0:02:18] [#]} (38. Kf1 $17 {might work better.}) 38... g6 {[%emt 0:01:05]} (38... Kf8 $1 $19 39. Rxf5 Ke7) 39. Rc5 {[%emt 0:01:18]} Rbb8 {[%emt 0:00:49]} 40. Kf1 {[%emt 0:00:29]} Kf8 {[%emt 0:01:31]} 41. Ra5 {[%emt 0:00:30]} Ke7 {[%emt 0:01:09]} 42. Re1 {[%emt 0:00:21]} (42. Ra7+ $17 Kxe6 43. Ra6+ Kf7 44. Ra7+ Kg8 45. Rd7) 42... c2 $19 {[%emt 0:00:56]} (42... Kxe6 $2 {is the wrong capture.} 43. Bd4+ Kf7 44. Ra7+ Kf8 45. Bxf6 $18) (42... Kd6 43. Ra6+ Kc7 44. e7 Bxe7 45. Ba7 $18) 43. Bc5+ $2 {[%emt 0:00:40]} (43. Ra7+ Ke8 (43... Kxe6 $2 44. Bc1+ Kd5 45. Ra5+ Kd4 46. Ra2 $19) 44. Ke2) 43... Ke8 {[%emt 0:00:06] Hoping for ...Rb1.} 44. Ra7 {[%emt 0:00:32]} Rxc5 {[%emt 0:00:12]} 45. Rxh7 {[%emt 0:00:27]} Rb1 {[%emt 0:00:17] Weighted Error Value: White=0.50/Black=0.13 (very precise) .  Mistake:       	White=7     	Black=3      Inaccurate:     	White=4     	Black=1      OK:         	White=15    	Black=21     Best:        	White=1     	Black=3      Strong:       	White=1     	Black=1} 0-1

[Event "NY Presidents Day IM-B 2024"]
[Site "New York"]
[Date "2024.02.16"]
[Round "2.6"]
[White "Wongso, Steve"]
[Black "Pang, Qi"]
[Result "0-1"]
[ECO "D85"]
[WhiteElo "2229"]
[BlackElo "2148"]
[Annotator "TA"]
[PlyCount "76"]
[EventDate "2024.02.14"]
[EventType "schev"]
[EventCountry "USA"]
[SourceTitle "playchess.com"]
[Source "ChessBase"]
[SourceQuality "1"]
[TimeControl "5400+30"]

{[%evp 22,75,-10,-14,0,0,7,0,0,0,8,0,0,0,0,-2,0,0,0,0,0,9,8,0,0,0,47,50,50,53,42,39,38,-63,66,71,64,72,68,43,29,63,59,18,20,-23,-15,-11,-24,-29994,-29990,-29995,-29996,-29996,-29997,-29999]} 1. d4 {[%emt 0:00:03]} Nf6 {[%emt 0:01:41]} 2. c4 {[%emt 0:00:08]} g6 {[%emt 0:00:34]} 3. Nc3 {[%emt 0:00:10]} d5 {[%emt 0:00:04]} 4. Nf3 {[%emt 0:01:05]} Bg7 {[%emt 0:00:04]} 5. cxd5 {[%emt 0:03:13]} Nxd5 {[%emt 0:00:24]} 6. e4 {[%emt 0:00:04]} Nxc3 {[%emt 0:00:01]} 7. bxc3 {[%emt 0:00:06]} O-O {[%emt 0:00:28]} 8. Bc4 {[%emt 0:00:27]} c5 {[%emt 0:00:08]} 9. O-O {[%emt 0:08:17]} Bg4 {[%emt 0:00:35]} 10. Be3 {[%emt 0:02:24]} cxd4 {[%emt 0:15:57]} 11. cxd4 {[%emt 0:00:09]} Nc6 {[%emt 0:00:05]} 12. e5 {[%emt 0:08:01]} Na5 {[%emt 0:00:04]} 13. Bd3 {[%emt 0:04:05]} Be6 {[%emt 0:01:15]} 14. Qe2 {[%emt 0:06:52]} Bd5 {[%emt 0:02:00] The position is equal.} 15. Rac1 {[%emt 0:04:41]} a6 {[%emt 0:11:06]} 16. Ng5 {[%emt 0:04:19][%cal Bf3g5,Bg5f7,Bf7h6][%mdl 32]} b5 {[%emt 0:00:16]} 17. Rc5 {[%emt 0:06:13]} Rc8 {[%emt 0:03:24]} 18. Rfc1 {[%emt 0:08:22]} Nc4 {[%emt 0:02:03]} 19. e6 {[%emt 0:04:02] [#] aiming for exf7+.} f5 {[%emt 0:29:10]} (19... fxe6 20. Nxh7 Rxc5 (20... Kxh7 $2 21. Qh5+ Kg8 22. Bxg6 $18) 21. Nxf8 $14) 20. Nf7 {[%emt 0:02:01] Wards off Rxc5} Qb6 {[%emt 0:02:04] And now ...Rxc5 would win.} 21. Nh6+ {[%emt 0:08:58]} Kh8 $1 $132 {[%emt 0:03:08][%mdl 2048] Black is not keeping still} 22. Nf7+ {[%emt 0:09:15]} Kg8 {[%emt 0:00:15] White must now prevent ...Rxc5.} 23. Rxd5 {[%emt 0:04:52]} Qxe6 {[%emt 0:00:06]} (23... Nxe3 $11 24. Rdc5 (24. Qxe3 Rxc1+ 25. Qxc1 Qxe6 $17) 24... Nc4 25. Rxc8 (25. Bxc4 $2 Bxd4 26. Rxc8 Rxc8 $19) 25... Rxc8) 24. Rc5 $14 {[%emt 0:02:18]} Qxf7 {[%emt 0:01:05]} (24... Nxe3 $2 25. Ng5 Rxc5 26. dxc5 $18) 25. R1xc4 {[%emt 0:04:00]} bxc4 {[%emt 0:00:14]} 26. Bxc4 {[%emt 0:00:04]} e6 {[%emt 0:01:01]} 27. Bg5 {[%emt 0:00:05]} (27. d5 $14 Qe7 28. dxe6) 27... Kh8 {[%emt 0:04:27]} (27... Bxd4 $2 28. Rxc8 (28. Bxe6 Rxc5 29. Bxf7+ Rxf7 $16) 28... Kg7 29. Bxe6 $18) (27... Rce8 $1 $15) 28. Bxe6 {[%emt 0:00:28] A strong pair of Bishops.} Rce8 {[%emt 0:00:44] Black is weak on the light squares} 29. d5 {[%emt 0:00:44][%mdl 1024] White has compensation.} Qa7 {[%emt 0:05:04]} 30. Rc6 {[%emt 0:03:47][%cal Og2g3]} Rb8 {[%emt 0:00:22]} 31. g3 {[%emt 0:01:17][%cal Od5d6]} (31. Rxa6 Rb1+) 31... Rb2 {[%emt 0:01:23]} 32. Qe3 {[%emt 0:01:07]} (32. Qxa6 $2 Qxf2+ 33. Kh1 Qxh2#) (32. Rxa6 $2 Qd4 33. Qe1 Qd3 $19) 32... Qd4 {[%emt 0:06:00]} (32... Bd4 33. Bf7 (33. Bf6+ Rxf6 34. Rc8+ Rf8 $16) 33... Rb7 (33... Bxe3 34. Bf6#) (33... Rxf7 34. Rc8+ Kg7 35. Bh6+ Kf6 36. Qe6#) (33... Rb1+ 34. Kg2 $16) 34. Rc4 $14) 33. Rc7 {[%emt 0:01:08] Threatens to win with Bh6.} (33. Rxa6 $2 Rb1+ 34. Kg2 Qd1 $19) 33... Qd1+ {[%emt 0:01:24]} 34. Kg2 {[%emt 0:00:04][%cal Oc7g7] Rxg7! would kill now.} Rb1 $1 {[%emt 0:00:25] ( -> ...Qf1+). Chess con chili.} (34... Rxa2 $2 {perishes.} 35. Rxg7 Qa1 36. Rc7 $18) ({Don't go for} 34... Bd4 $2 35. Bf4 (35. Bh6 Re2 $17) 35... Re2 (35... Rxf2+ $2 36. Qxf2 Bf6 37. Qc2 $18) 36. Rc1 (36. Qf3 $2 Qe1 $19) 36... Rxe3 37. Rxd1 Rxe6 38. dxe6 $18) 35. Kh3 $2 {[%emt 0:04:38][%mdl 8192] [#] White does not recover from this.} (35. Rc1 $11 Rxc1 36. Qxc1 Qxc1 37. Bxc1) 35... Qf1+ {[%emt 0:03:55] Black mates.} 36. Kh4 {[%emt 0:00:03]} Qg2 {[%emt 0:00:10][%cal Rg2h2]} 37. h3 {[%emt 0:00:25]} Rh1 {[%emt 0:00:13][%csl Gh1][%cal Rg2h3]} 38. g4 {[%emt 0:00:08]} Qxg4# {[%emt 0:00:42] Weighted Error Value: White=0.37/Black=0.07 (flawless) .  Loses game:     	White=1     	---        Mistake:       	White=1     	Black=2      Inaccurate:     	White=2     	---        OK:         	White=8     	Black=9      Best:        	White=3     	Black=4      Strong:       	---       	Black=2} 0-1

[Event "NY Presidents Day IM-B 2024"]
[Site "New York"]
[Date "2024.02.17"]
[Round "3.1"]
[White "Graif, William"]
[Black "Lee, Megan"]
[Result "0-1"]
[ECO "B22"]
[WhiteElo "2302"]
[BlackElo "2267"]
[Annotator "TA"]
[PlyCount "70"]
[EventDate "2024.02.14"]
[EventType "schev"]
[EventCountry "USA"]
[SourceTitle "playchess.com"]
[Source "ChessBase"]
[SourceQuality "1"]
[TimeControl "5400+30"]

{[%evp 20,70,1,0,0,7,0,-10,6,-16,0,-37,-27,-31,-18,-18,14,0,0,0,0,-3,0,0,0,-70,-51,-63,-41,-205,-193,-202,-184,-194,-112,-175,-122,-120,-122,-183,-168,-232,-197,-305,-247,-284,-319,-564,-565,-497,-496,-29996,-29997]} 1. e4 {[%emt 0:02:09][%cal Be2e4,Be4e5][%mdl 32]} c5 {[%emt 0:00:04]} 2. c3 {[%emt 0:04:00]} Nf6 {[%emt 0:00:05]} 3. e5 {[%emt 0:00:11]} Nd5 {[%emt 0:00:04]} 4. Nf3 {[%emt 0:00:24]} d6 {[%emt 0:00:53]} 5. d4 {[%emt 0:00:40]} cxd4 {[%emt 0:00:18]} 6. exd6 {[%emt 0:00:15]} e6 {[%emt 0:01:16]} 7. Nxd4 {[%emt 0:00:31]} Bxd6 {[%emt 0:00:24]} 8. g3 {[%emt 0:00:07]} Nc6 {[%emt 0:01:50]} 9. Bg2 {[%emt 0:01:24]} Nxd4 {[%emt 0:02:30]} 10. Qxd4 {[%emt 0:00:16]} O-O {[%emt 0:00:47]} 11. O-O {[%emt 0:00:44]} Qc7 {[%emt 0:00:38]} 12. c4 {[%emt 0:23:28]} Be5 {[%emt 0:05:05]} 13. Qh4 {[%emt 0:06:55]} Ne7 {[%emt 0:04:59] The position is equal.} 14. Na3 {[%emt 0:13:40]} a6 {[%emt 0:02:09] Inhibits Nb5.} 15. Re1 {[%emt 0:04:05]} Ng6 {[%emt 0:02:48]} 16. Qe4 {[%emt 0:05:12]} Rb8 {[%emt 0:01:47]} 17. Qe2 {[%emt 0:08:56]} f5 {[%emt 0:07:19]} 18. f4 {[%emt 0:04:21]} Bf6 {[%emt 0:04:08]} 19. h4 {[%emt 0:04:11]} Re8 {[%emt 0:03:40]} 20. h5 {[%emt 0:03:44]} Nf8 {[%emt 0:01:41]} 21. Be3 {[%emt 0:01:26]} Bd7 {[%emt 0:04:44]} 22. h6 {[%emt 0:01:47]} gxh6 {[%emt 0:02:10][%cal Oh6h5]} 23. Qf2 {[%emt 0:05:30]} Bc6 {[%emt 0:04:46]} 24. Bd4 $2 {[%emt 0:00:36]} (24. c5 $1 $15) 24... Bxd4 $19 {[%emt 0:01:00]} 25. Qxd4 {[%emt 0:00:02]} Rbd8 {[%emt 0:00:36]} 26. Qc3 {[%emt 0:01:02]} Rd7 {[%emt 0:03:17]} ({Black should try} 26... Bxg2 $19 27. Kxg2 h5) 27. Rad1 {[%emt 0:03:11]} (27. Bxc6 $17 Qxc6 28. Re2) 27... Rg7 {[%emt 0:01:30]} ({Better is} 27... Bxg2 $19 28. Kxg2 Rxd1 29. Rxd1 h5) 28. Bxc6 $17 {[%emt 0:01:44]} Qxc6 {[%emt 0:00:01]} 29. Kf2 {[%emt 0:01:38]} (29. Nc2 $17) 29... Ng6 $36 {[%emt 0:01:25][%cal Og6f4][%mdl 2048] [#] ...Nxf4! would now be deadly. Black is really pushing.} 30. Rd4 {[%emt 0:02:43]} (30. Qf3 $142) 30... e5 {[%emt 0:00:53]} 31. Rd5 {[%emt 0:00:34]} (31. Qf3 {is the only way for White.}) 31... exf4 {[%emt 0:43:13]} 32. Rxe8+ {[%emt 0:00:12]} Qxe8 {[%emt 0:00:00]} 33. Qd2 $2 {[%emt 0:00:49]} (33. c5 {was worth a try.}) 33... fxg3+ $19 {[%emt 0:00:00]} 34. Kg1 {[%emt 0:01:03][%cal Od5d8] Rd8! is the strong threat.} Nh4 {[%emt 0:00:00]} 35. Qd1 {[%emt 0:00:00] [#] Prevents Nf3+} (35. Rd8 $19 Nf3+ 36. Kg2 Nxd2 37. Rxe8+ Kf7 38. Re2) 35... Qe3+ {[%emt 0:00:00] Weighted Error Value: White=0.60/Black=0.17 (very precise) .  Loses game:     	White=1     	---        Mistake:       	White=7     	Black=2      Inaccurate:     	White=1     	Black=1      OK:         	White=7     	Black=8      Best:        	White=1     	Black=1} 0-1